bitfinex-derivatives/quotes_ETHF0:USTF0_20260203
["timestamp","ask_amount","ask_price","bid_price","bid_amount"]
[1770134397465,0.21713,2304.7,2304.1,2.50600689]
[1770134397658,0.21714,2304.6,2303.8,1.72716424]
[1770134397858,0.21714,2304.6,2303.8,4.23317113]
[1770134398365,0.21715,2304.5,2303.8,4.23317113]
[1770134398567,0.21716,2304.4,2303.8,4.23317113]
[1770134398766,0.21716,2304.4,2303.8,1.72716424]
[1770134398967,0.21716,2304.4,2303.9,2.50600689]
[1770134400463,0.21716,2304.4,2303.8,4.23317113]
[1770134401366,0.00437336,2304.8,2303.9,2.50600689]
[1770134401671,2.3497679,2304.8,2304.1,1.72716424]
[1770134401870,2.3497679,2304.8,2304.1,1.29096424]
[1770134402067,2.3497679,2304.8,2303.6,2.50600689]
[1770134402267,2.3497679,2304.8,2303.5,2.50600689]
[1770134402467,0.21716,2304.4,2303.8,2.50600689]
[1770134402664,2.34539454,2304.6,2303.7,1.29096424]
[1770134402873,2.34539454,2304.6,2303.3,1.29096424]
[1770134403072,0.22149336,2304.8,2303.4,2.50600689]
[1770134403269,1.99979454,2305.0,2303.9,3.79697113]
[1770134403474,0.21719,2304.0,2303.9,0.84794424]
[1770134403768,4.371,2304.3,2302.9,0.00430303]
[1770134403970,0.21724,2303.5,2302.9,0.00430303]
[1770134404275,6.41201473,2305.3,2303.0,2.17050161]
[1770134404976,6.41201473,2305.3,2303.5,2.17050161]
[1770134405176,0.21721,2303.9,2302.9,2.51030992]
[1770134405371,0.21723,2303.7,2302.9,0.00430303]
[1770134405978,0.21724,2303.5,2302.9,2.51030992]
[1770134406277,0.22280983,2303.5,2302.9,2.51030992]
[1770134406880,0.21725,2303.4,2302.7,2.17050161]
[1770134407479,6.891,2303.8,2302.8,2.50600689]
[1770134407781,6.891,2303.8,2301.7,2.548]
[1770134407782,6.891,2303.8,2303.1,2.50600689]
[1770134408276,0.21723,2303.6,2302.7,4.6765085]
[1770134408980,0.22054969,2303.6,2302.8,2.50600689]
[1770134409882,2.34539454,2303.1,2302.7,1.40061078]
[1770134410078,8.77558267,2303.1,2301.9,2.50600689]
[1770134410276,0.21734,2302.5,2301.9,2.50600689]
[1770134410977,0.21734,2302.5,2301.9,2.51038823]
[1770134411178,0.21735,2302.4,2301.9,0.00438134]
[1770134411382,0.21735,2302.4,2301.6,2.50600689]
[1770134411676,10.77418813,2302.8,2301.6,2.50600689]
[1770134411677,0.21731,2302.8,2301.6,2.50600689]
[1770134412074,6.578,2302.9,2301.6,2.50600689]
[1770134412273,0.21733,2302.5,2301.6,2.50953888]
[1770134412682,0.21734,2302.4,2301.6,2.50953888]
[1770134412980,8.04686564,2302.5,2301.6,0.00353199]
[1770134413181,0.21741,2301.7,2301.5,1.79477332]
[1770134413381,0.21741,2301.7,2301.0,2.50600689]
[1770134413677,0.21743,2301.6,2300.7,2.54310235]
[1770134413876,0.21743,2301.6,2299.8,4.345]
[1770134413877,0.21745,2301.3,2299.8,4.345]
[1770134414074,0.2206127,2301.3,2300.1,1.20796418]
[1770134414277,0.2206127,2301.3,2300.3,2.17440425]
[1770134414677,0.0031627,2301.3,2300.3,2.17440425]
[1770134414877,4.345,2302.1,2301.3,2.17440425]
[1770134415080,0.21733,2302.6,2301.3,2.17440425]
[1770134415278,0.21734,2302.5,2301.3,2.17440425]
[1770134415582,0.21736,2302.3,2301.3,2.17440425]
[1770134415782,0.22059503,2302.3,2301.4,2.50600689]
[1770134416576,0.00323503,2302.3,2301.4,2.50600689]
[1770134416781,0.00323503,2302.3,2301.6,1.20796418]
[1770134416977,7.291,2302.7,2302.0,2.50600689]
[1770134417175,2.34539454,2302.6,2301.6,2.50909003]
[1770134417383,0.21738,2302.0,2301.2,2.50600689]
[1770134417575,0.21738,2302.0,2301.2,4.67740809]
[1770134418181,0.21738,2302.0,2301.2,2.50600689]
[1770134418386,0.2174,2301.8,2300.9,2.1714012]
[1770134419377,2.34539454,2301.6,2299.9,4.347]
[1770134419580,2.34539454,2301.4,2299.0,4.347]
[1770134419776,0.21749,2300.9,2299.1,2.549]
[1770134419982,0.21743,2301.5,2300.2,2.17404375]
[1770134420385,7.035,2301.4,2300.6,2.17404375]
[1770134420780,7.035,2301.4,2300.2,0.00335055]
[1770134420781,0.21748,2301.1,2300.2,2.48365754]
[1770134420987,0.21744,2301.4,2300.5,2.17303409]
[1770134421282,3.60673624,2302.0,2300.6,2.48030699]
[1770134421483,0.00334624,2302.0,2301.2,2.48030699]
[1770134422389,0.00334624,2302.0,2301.1,2.17303409]
[1770134422390,0.21739,2301.9,2301.1,2.17303409]
[1770134422788,0.21739,2301.9,2301.2,2.48030699]
[1770134423183,0.21739,2301.9,2301.1,2.17303409]
[1770134423988,0.21739,2301.9,2301.2,2.48030699]
[1770134424186,2.49424018,2302.0,2301.1,2.17303409]
[1770134424389,0.21742,2301.6,2301.1,4.65334108]
[1770134424587,0.21742,2301.6,2301.1,2.17303409]
[1770134424789,0.21742,2301.6,2301.1,4.65334108]
[1770134424988,0.21743,2301.5,2301.1,2.17303409]
[1770134425190,0.21746,2301.2,2300.5,2.48030699]
[1770134425490,0.21747,2301.1,2300.4,2.17297773]
[1770134425690,0.21747,2301.1,2300.4,4.65328472]
[1770134425881,0.21748,2301.0,2300.4,4.65328472]
[1770134426084,0.2175,2300.8,2300.4,2.17297773]
[1770134426289,0.2175,2300.8,2300.4,4.65328472]
[1770134426988,0.2175,2300.8,2300.2,2.17632828]
[1770134427388,8.092,2301.3,2300.3,2.48030699]
[1770134427891,10.58289394,2301.3,2300.3,2.48030699]
[1770134428290,0.2175,2300.8,2300.3,2.48030699]
[1770134428491,8.092,2301.3,2300.3,2.48030699]
[1770134428787,4.56544,2301.4,2300.7,2.48030699]
[1770134428993,0.57975976,2301.4,2300.9,2.17297773]
[1770134429184,0.21739,2301.9,2301.3,2.17297773]
[1770134429385,0.2174,2301.8,2301.3,2.17297773]
[1770134430492,0.21743,2301.5,2301.3,1.69392773]
[1770134430793,0.21743,2301.5,2301.2,0.47192773]
[1770134431995,0.21747,2301.1,2300.2,4.35235055]
[1770134432294,0.21749,2300.9,2300.2,4.35235055]
[1770134432493,0.21749,2300.9,2300.7,1.68148201]
[1770134432689,0.21744,2301.4,2300.7,1.68148201]
[1770134432888,0.21748,2301.0,2300.7,1.24568201]
[1770134433094,0.21749,2300.9,2300.7,0.79462201]
[1770134434187,2.54655104,2301.1,2300.2,0.00335055]
[1770134434393,0.21754,2300.4,2299.3,4.349]
[1770134434595,2.54655104,2300.9,2299.9,2.17399389]
[1770134434596,0.21756,2300.2,2299.9,2.17399389]
[1770134434795,0.21756,2300.2,2299.6,2.17399389]
[1770134435492,0.21757,2300.0,2299.6,2.17769952]
[1770134435793,0.00369095,2300.2,2299.1,0.00556286]
[1770134435993,0.00369095,2300.2,2299.6,2.17457934]
[1770134436194,8.30554,2300.4,2299.6,2.17645125]
[1770134436395,8.30554,2300.4,2299.6,2.17457934]
[1770134436794,0.21754,2300.3,2299.6,2.17457934]
[1770134437299,0.22299364,2300.3,2299.6,2.1790396]
[1770134437991,0.21752,2300.6,2300.1,2.17457934]
[1770134438186,0.21753,2300.5,2300.1,2.17457934]
[1770134438591,0.21666063,2300.5,2300.1,2.17457934]
[1770134438787,38.51566762,2301.0,2300.1,2.17457934]
[1770134438993,38.51566762,2300.8,2300.1,2.17457934]
[1770134439194,38.73316762,2300.8,2300.1,2.17457934]
[1770134439389,38.51566762,2300.6,2300.1,2.17457934]
[1770134439596,0.21756,2300.2,2299.6,0.00446026]
[1770134439997,0.21756,2300.1,2300.0,1.71107064]
[1770134440195,0.21756,2300.1,2299.6,0.00446026]
[1770134440395,0.21756,2300.1,2299.8,2.17415062]
[1770134441493,38.51566762,2300.3,2299.8,2.17415062]
[1770134441694,38.51566762,2300.4,2299.8,2.17415062]
[1770134441995,38.73320762,2300.4,2299.8,2.17415062]
[1770134442397,38.51566762,2300.2,2299.8,2.17415062]
[1770134442895,38.73321762,2300.3,2299.8,2.17415062]
[1770134443096,0.21755,2300.3,2299.8,2.17415062]
[1770134443692,38.51566762,2300.8,2300.2,2.17415062]
[1770134443898,0.00471878,2301.0,2300.5,2.17415062]
[1770134444690,2.76874982,2301.0,2300.5,2.12619065]
[1770134445000,7.70736042,2302.0,2301.4,2.12619065]
[1770134445198,11.99999206,2301.8,2301.4,2.12619065]
[1770134445399,11.99999206,2302.0,2301.4,2.12619065]
[1770134445595,2.76397104,2301.6,2299.7,4.35]
[1770134445897,0.21743,2301.5,2299.7,4.35]
[1770134446099,7.71622576,2302.5,2299.7,4.35]
[1770134446100,11.99999206,2301.9,2301.6,2.170912]
[1770134446295,0.21738,2302.1,2301.6,2.170912]
[1770134446596,4.3464,2301.9,2300.8,0.00218787]
[1770134446899,11.36077884,2302.0,2300.2,0.00218787]
[1770134446900,0.21745,2301.3,2300.2,0.00218787]
[1770134447199,2.5454571,2301.2,2300.6,1.21791757]
[1770134447499,2.5454571,2301.2,2300.2,0.0035966]
[1770134447500,2.5454571,2300.7,2300.2,0.0035966]
[1770134447694,0.21752,2300.6,2300.2,0.0035966]
[1770134447894,2.5454571,2300.2,2299.2,0.00218787]
[1770134448301,8.5968378,2300.1,2299.7,1.51736765]
[1770134448501,2.7630371,2299.9,2298.8,0.00218787]
[1770134448796,2.54655104,2299.7,2299.0,2.17499276]
[1770134448999,4.3464,2299.6,2298.8,0.00438214]
[1770134449203,8.60013565,2299.6,2298.9,2.17492297]
[1770134449402,8.60013565,2299.6,2299.1,2.17492297]
[1770134449800,11.14668669,2299.6,2298.8,0.00438214]
[1770134449994,6.89295104,2299.5,2298.8,0.00438214]
[1770134450401,2.54647362,2299.3,2298.9,2.17474509]
[1770134450600,8.5968378,2299.2,2298.9,2.17474509]
[1770134450900,8.5968378,2299.2,2298.9,0.95092634]
[1770134451296,12.9432378,2299.2,2298.9,0.95092634]
[1770134451894,4.3464,2299.0,2298.9,0.95092634]
[1770134452103,7.59229785,2299.6,2298.9,0.95092634]
[1770134452104,0.00329785,2299.6,2298.9,0.95653703]
[1770134452404,8.5968378,2299.5,2298.9,0.95653703]
[1770134452600,0.00329785,2299.6,2298.9,0.95653703]
[1770134452901,8.5968378,2299.5,2298.9,0.95653703]
[1770134453704,4.3464,2299.3,2298.9,0.95653703]
[1770134454006,6.89295488,2299.3,2298.9,0.95653703]
[1770134454297,12.9432378,2299.2,2298.9,0.95653703]
[1770134454602,8.5968378,2299.4,2298.9,0.95653703]
[1770134455302,15.48979268,2299.4,2298.9,0.95653703]
[1770134455499,4.3464,2299.3,2298.9,0.95653703]
[1770134455705,12.9432378,2299.4,2298.9,0.95653703]
[1770134455903,8.5968378,2299.4,2298.9,0.95653703]
[1770134457001,11.14339268,2299.4,2298.9,0.95653703]
[1770134457204,2.54655488,2300.0,2299.2,0.95092634]
[1770134457403,2.54655488,2299.9,2299.2,0.95092634]
[1770134457807,8.5968378,2299.8,2299.5,0.95092634]
[1770134458102,9.38955488,2300.3,2299.5,0.95092634]
[1770134458307,9.38955488,2300.3,2299.8,0.95092634]
[1770134458308,11.14778816,2300.3,2299.8,0.95092634]
[1770134458510,2.54655488,2300.7,2299.8,0.95092634]
[1770134458703,2.54655488,2300.6,2299.8,0.95092634]
[1770134458904,2.54655488,2300.6,2300.3,0.94323301]
[1770134459110,0.21747,2301.1,2300.3,0.94323301]
[1770134459411,6.89295488,2300.7,2300.3,0.94323301]
[1770134459609,2.54655488,2300.5,2300.3,0.46494166]
[1770134459809,4.3464,2300.4,2300.3,0.46494166]
[1770134460206,4.3464,2300.4,2300.3,3.86e-06]
[1770134460407,6.89295488,2300.4,2300.3,3.86e-06]
[1770134460612,2.54655488,2300.4,2299.2,2.552]
[1770134460912,0.00394222,2300.7,2300.2,2.17372403]
[1770134460913,2.17321345,2300.3,2300.2,2.17372403]
[1770134461208,0.00394222,2300.7,2300.2,2.17372403]
[1770134461406,2.54655488,2300.6,2300.2,2.17372403]
[1770134461606,2.52735348,2300.2,2299.1,4.352]
[1770134461812,0.21761,2299.6,2298.9,0.00561069]
[1770134462011,2.52735348,2299.5,2299.1,1.73833867]
[1770134462310,2.52735348,2299.5,2298.9,0.00561069]
[1770134462311,2.17321345,2299.2,2298.9,0.00561069]
[1770134462512,2.17321345,2299.1,2298.9,2.18062077]
[1770134463010,2.17321345,2299.0,2298.9,2.18062077]
[1770134463404,2.17321345,2299.0,2298.9,2.1750221]
[1770134464109,0.95121345,2299.0,2298.9,2.1750221]
[1770134464311,0.95498657,2299.0,2298.9,2.1750221]
[1770134465209,2.74497348,2299.5,2298.9,2.1750221]
[1770134465210,2.52735348,2299.5,2298.9,2.1750221]
[1770134465409,1.67037943,2299.6,2298.9,2.1750221]
[1770134465709,1.67037943,2299.2,2298.4,0.22196456]
[1770134465918,2.52735348,2299.1,2298.4,0.22196456]
[1770134466212,2.52735348,2299.1,2298.4,2.39738161]
[1770134466413,2.52735348,2298.7,2297.5,2.35630812]
[1770134466811,2.53110659,2298.7,2297.5,0.00539856]
[1770134467013,2.53110659,2298.7,2297.8,2.17601355]
[1770134467812,0.00375311,2298.7,2297.8,4.53232167]
[1770134468007,0.00375311,2298.7,2298.1,2.17601355]
[1770134468314,2.52735348,2299.4,2298.7,2.17601355]
[1770134468514,5.27209698,2299.6,2298.7,2.17601355]
[1770134468712,6.43018813,2300.0,2298.8,2.35630812]
[1770134468916,2.52735348,2300.1,2299.2,2.17601355]
[1770134469413,2.52735348,2299.7,2298.9,2.17601355]
[1770134469805,2.52735348,2299.7,2298.6,2.17601355]
[1770134470010,0.52042985,2300.0,2299.0,2.17601355]
[1770134470217,2.52735348,2299.9,2299.0,2.17601355]
[1770134470415,2.74493348,2299.9,2299.0,2.18107705]
[1770134471012,2.74495348,2299.7,2299.0,2.18107705]
[1770134471218,2.74495348,2299.7,2299.0,0.0050635]
[1770134471414,2.74495348,2299.7,2298.9,2.17601355]
[1770134471609,2.74497348,2299.5,2298.3,2.35630812]
[1770134471813,2.51626366,2299.4,2298.3,2.35630812]
[1770134472320,0.21764,2299.3,2298.4,2.35630812]
[1770134472518,10.95908882,2299.7,2298.4,2.36038302]
[1770134472817,0.21762,2299.6,2298.6,4.53077807]
[1770134473417,2.31608855,2299.6,2298.6,2.17446995]
[1770134473713,6.43018813,2299.9,2298.7,2.35630812]
[1770134474013,2.84324011,2300.0,2299.0,2.17446995]
[1770134474213,2.31608855,2299.8,2299.0,2.17446995]
[1770134475012,0.21764,2299.3,2298.6,1.72265995]
[1770134475512,0.21758,2299.9,2298.7,2.35630812]
[1770134475818,9.43094259,2300.3,2298.4,0.0040749]
[1770134475819,0.21753,2300.5,2299.8,2.35630812]
[1770134476019,0.74673199,2300.5,2299.8,2.35630812]
[1770134476418,16.32754566,2301.0,2299.8,2.35630812]
[1770134476419,6.64768813,2300.8,2299.8,2.35630812]
[1770134476717,0.22265794,2300.8,2300.1,2.35630812]
[1770134476914,6.43018813,2301.1,2300.4,2.35630812]
[1770134477114,0.0040257,2300.9,2300.3,1.72265995]
[1770134477321,6.96648355,2301.1,2300.4,2.35630812]
[1770134477521,0.0040257,2300.7,2300.1,0.00511283]
[1770134477913,0.0040257,2300.5,2300.1,2.83e-06]
[1770134478114,0.0040257,2300.1,2299.3,2.35630812]
[1770134478423,0.21758,2299.9,2298.5,2.35630812]
[1770134478626,0.21759,2299.8,2299.3,4.52938838]
[1770134478925,0.21759,2299.8,2299.4,2.35630812]
[1770134479222,0.0040257,2299.6,2299.4,8.96e-06]
[1770134479523,0.2176,2299.7,2299.4,8.96e-06]
[1770134479723,0.0040257,2299.6,2299.4,8.96e-06]
[1770134479923,0.2176,2299.7,2299.4,8.96e-06]
[1770134480922,6.64774813,2300.2,2299.4,2.31270977]
[1770134481123,0.21756,2300.1,2299.4,2.31270977]
[1770134481720,0.21756,2300.1,2299.7,2.31270081]
[1770134482528,0.21756,2300.1,2299.6,2.17308026]
[1770134482927,0.21758,2300.0,2299.6,2.17308026]
[1770134483524,7.38264406,2300.1,2299.4,8.96e-06]
[1770134483725,0.21762,2299.5,2299.4,8.96e-06]
[1770134484227,0.21765,2299.2,2298.7,1.46973725]
[1770134484426,5.18498986,2299.5,2298.7,1.46973725]
[1770134484629,5.18498986,2299.6,2298.7,1.46973725]
[1770134484828,5.40259986,2299.6,2298.7,1.46973725]
[1770134485028,5.40259986,2299.6,2298.7,1.47300447]
[1770134485225,5.18498986,2299.6,2298.7,1.47300447]
[1770134485427,0.21764,2299.4,2298.7,1.47300447]
[1770134486030,5.18549038,2299.8,2298.8,2.31270081]
[1770134486230,2.30477734,2300.3,2299.4,3.78243806]
[1770134486430,0.21754,2300.3,2299.5,2.31270081]
[1770134486628,0.22097594,2300.7,2299.7,1.46973725]
[1770134486832,0.22097594,2300.7,2300.0,1.46973725]
[1770134487131,0.22097594,2300.7,2300.4,1.46973725]
[1770134487331,4.352,2300.9,2300.4,1.47504846]
[1770134487532,6.65677734,2300.9,2300.4,1.03614846]
[1770134487733,2.30477734,2300.8,2300.1,0.05704889]
[1770134487927,0.21753,2300.4,2300.1,8.89e-06]
[1770134488737,0.21753,2300.4,2299.9,1.73750284]
[1770134488738,0.21755,2300.2,2299.9,1.73750284]
[1770134489336,1.66978543,2300.0,2299.0,2.31270081]
[1770134489538,0.21758,2299.9,2299.6,2.17432907]
[1770134489734,2.52235734,2299.9,2299.6,1.73565907]
[1770134490040,0.21759,2299.8,2299.0,2.31270081]
[1770134490335,0.21759,2299.8,2299.3,2.31270081]
[1770134490742,1.89228794,2300.4,2299.5,4.48714333]
[1770134491037,0.21756,2300.1,2299.5,0.0036844]
[1770134491343,0.21758,2299.9,2299.5,0.0036844]
[1770134491837,0.2176,2299.7,2299.2,2.17434996]
[1770134492037,1.66978543,2300.0,2299.2,2.17434996]
[1770134492737,1.88736543,2300.0,2299.2,2.17968413]
[1770134493444,0.21758,2299.9,2299.2,2.17968413]
[1770134495244,0.21759,2299.8,2299.2,2.17968413]
[1770134495943,0.21759,2299.8,2299.3,2.31270081]
[1770134496146,1.66978543,2300.0,2299.3,2.31270081]
[1770134496340,6.43018813,2300.1,2299.3,2.31270081]
[1770134496542,7.71622576,2300.3,2299.3,2.31270081]
[1770134496543,0.21755,2300.3,2299.3,2.31270081]
[1770134496742,0.21755,2300.3,2299.6,4.48705077]
[1770134496941,0.21755,2300.3,2299.7,2.31270081]
[1770134497147,0.00496251,2300.4,2299.6,2.17434996]
[1770134497341,0.21756,2300.1,2299.6,2.17434996]
[1770134497547,0.00496251,2300.4,2299.7,2.31270081]
[1770134497747,0.00496251,2300.4,2299.7,1.81439081]
[1770134498045,0.00496251,2300.4,2299.6,2.17434996]
[1770134499043,0.22249251,2300.4,2299.6,2.17434996]
[1770134499742,0.22249251,2300.4,2299.7,2.31270081]
[1770134500144,0.00496251,2300.4,2299.6,2.17434996]
[1770134500349,0.21757,2300.0,2299.6,2.17434996]
[1770134500648,0.21757,2300.0,2299.6,4.48705077]
[1770134500843,2.30973985,2300.4,2299.6,1.68852996]
[1770134501048,2.30973985,2300.4,2299.2,0.00533417]
[1770134501351,0.21762,2299.6,2299.2,2.17961389]
[1770134501551,0.21762,2299.6,2299.2,0.00533417]
[1770134501952,2.30477734,2300.2,2299.2,2.31803498]
[1770134502250,0.21759,2299.8,2299.2,2.31803498]
[1770134502450,2.30477734,2300.1,2299.2,0.00533417]
[1770134504049,0.21761,2299.6,2299.2,0.00533417]
[1770134504250,0.21762,2299.5,2299.2,4.17e-06]
[1770134504451,0.21763,2299.4,2299.2,4.17e-06]
[1770134504656,10.0210031,2300.0,2299.2,4.17e-06]
[1770134504857,0.2176,2299.7,2299.2,2.31270498]
[1770134505051,7.71622576,2300.1,2299.2,2.31270498]
[1770134506154,0.2176,2299.7,2299.2,2.31270498]
[1770134507958,6.50148359,2299.9,2299.2,2.31270498]
[1770134508260,6.50148359,2299.8,2299.2,4.17e-06]
[1770134509161,0.21762,2299.6,2299.2,4.17e-06]
[1770134509860,0.21757,2300.1,2299.4,2.31270081]
[1770134510058,10.85348359,2300.2,2299.4,2.31270081]
[1770134510358,0.2176,2299.8,2299.4,2.31270081]
[1770134510560,0.2176,2299.8,2299.4,2.48759498]
[1770134511056,0.21762,2299.6,2299.3,2.17427972]
[1770134511254,6.50148359,2300.0,2299.4,2.48759498]
[1770134511654,14.21770935,2300.2,2299.7,2.48759498]
[1770134511863,0.22250251,2300.4,2299.7,2.48759498]
[1770134512063,0.22250251,2300.4,2300.0,2.48759498]
[1770134512258,0.21754,2300.3,2299.9,2.17427972]
[1770134512857,0.21754,2300.3,2299.9,4.6618747]
[1770134513163,0.00496251,2300.4,2300.0,2.3829096]
[1770134513362,6.50148359,2300.7,2300.0,2.3829096]
[1770134514056,6.71898359,2300.8,2300.0,2.3829096]
[1770134514260,0.2175,2300.7,2300.0,2.3829096]
[1770134515163,0.21753,2300.5,2300.0,2.3829096]
[1770134515766,2.53378076,2300.8,2299.9,2.17427972]
[1770134515958,6.50148359,2300.7,2299.9,2.17427972]
[1770134516165,6.50707115,2300.8,2299.9,2.17427972]
[1770134516463,0.22308756,2300.8,2300.3,2.17427972]
[1770134517461,2.5281932,2300.7,2300.3,2.17427972]
[1770134517664,0.21753,2300.4,2299.2,4.17e-06]
[1770134517965,0.21753,2300.4,2299.9,2.17294876]
[1770134518166,0.21753,2300.4,2300.0,2.3829096]
[1770134518367,2.5281932,2300.4,2299.9,0.5736107]
[1770134518662,0.21759,2299.8,2299.4,7e-07]
[1770134519063,2.5281932,2300.2,2299.3,2.17458427]
[1770134519257,0.2176,2299.7,2299.3,2.17458427]
[1770134519462,0.2176,2299.7,2299.2,4.17e-06]
[1770134519661,2.5281932,2299.9,2298.9,2.17458427]
[1770134519867,0.21761,2299.6,2298.9,2.17458427]
[1770134520066,0.21762,2299.5,2298.9,2.17458427]
[1770134520861,0.21769,2298.8,2297.6,2.3829096]
[1770134521063,0.2177,2298.7,2297.6,2.3829096]
[1770134521265,6.50148359,2299.1,2298.3,2.3829096]
[1770134521563,6.50148359,2299.8,2299.0,4.55891607]
[1770134521762,0.00528346,2299.8,2299.4,2.3829096]
[1770134521965,0.21758,2300.0,2299.4,2.3829096]
[1770134522261,11.67856346,2300.1,2299.3,2.17600647]
[1770134522467,0.21764,2299.3,2299.0,0.00322792]
[1770134522761,0.21764,2299.3,2298.7,3.62105607]
[1770134523665,0.2212164,2299.3,2298.7,3.62572108]
[1770134524068,6.71907359,2299.8,2298.8,2.3829096]
[1770134524267,0.21759,2299.8,2298.8,2.3829096]
[1770134524469,0.21759,2299.8,2299.1,1.23814647]
[1770134524665,0.21754,2300.4,2299.2,2.3829096]
[1770134524868,0.21754,2300.4,2299.6,2.3829096]
[1770134525068,0.0040748,2300.4,2299.9,2.3829096]
[1770134525268,0.2175,2300.8,2299.9,2.3829096]
[1770134525561,0.21751,2300.7,2299.9,2.3829096]
[1770134525768,0.21748,2301.0,2300.3,2.3829096]
[1770134526163,0.21748,2301.0,2300.2,1.23814647]
[1770134526164,0.21751,2300.7,2300.2,1.23814647]
[1770134526364,0.53629542,2301.1,2300.3,2.3829096]
[1770134526561,0.21747,2301.1,2300.3,2.3829096]
[1770134526964,0.21748,2301.0,2300.2,3.62105607]
[1770134527161,0.2175,2300.8,2300.2,3.05055607]
[1770134527464,0.2226526,2300.8,2300.3,2.3829096]
[1770134528368,0.50302408,2301.1,2300.3,2.3829096]
[1770134528565,17.08048359,2301.2,2300.3,2.3829096]
[1770134528763,17.56810496,2301.2,2300.3,2.3829096]
[1770134528965,11.06662137,2301.2,2300.3,2.3829096]
[1770134529363,11.06975717,2301.2,2300.3,2.3829096]
[1770134529566,11.28721717,2301.2,2300.3,2.3829096]
[1770134529766,11.28721717,2301.2,2299.1,2.552]
[1770134529767,4.3551358,2301.2,2300.7,3.05055607]
[1770134529967,0.2175,2300.8,2300.0,2.3829096]
[1770134530267,0.21753,2300.5,2300.0,2.3829096]
[1770134530466,0.21753,2300.5,2300.1,2.17221661]
[1770134530666,0.21755,2300.3,2299.5,2.3829096]
[1770134530972,0.21755,2300.3,2299.5,2.38719802]
[1770134531167,0.21755,2300.3,2299.6,2.17448923]
[1770134532265,6.50148359,2300.4,2299.6,1.72796923]
[1770134532464,0.79341671,2300.0,2299.0,2.3829096]
[1770134532667,0.79341671,2300.0,2297.3,4.98428858]
[1770134532668,0.21763,2299.4,2298.4,2.3829096]
[1770134532971,0.21764,2299.3,2298.8,4.55795768]
[1770134533364,0.22325989,2299.3,2298.9,2.3829096]
[1770134533871,6.50148359,2299.8,2299.2,4.11724621]
[1770134534067,0.21759,2299.8,2299.3,2.3829096]
[1770134534468,0.21754,2300.4,2299.7,2.3829096]
[1770134534967,0.00543477,2300.4,2299.8,2.3829096]
[1770134535173,0.21756,2300.1,2299.7,2.3829096]
[1770134535669,0.00543477,2300.4,2300.0,4.11724621]
[1770134535868,0.21755,2300.2,2299.6,2.17504808]
[1770134536172,0.21758,2299.9,2299.6,2.17504808]
[1770134536570,0.21758,2299.9,2299.6,0.51643808]
[1770134537068,0.21761,2299.6,2298.8,0.00364175]
[1770134537270,4.92,2300.0,2299.2,2.17392199]
[1770134537772,0.2176,2299.7,2299.2,2.17392199]
[1770134537967,0.2176,2299.7,2299.3,2.3829096]
[1770134538277,0.21767,2299.0,2298.8,0.00364175]
[1770134538571,0.21772,2298.5,2296.9,2.552]
[1770134538774,0.21773,2298.3,2296.9,2.552]
[1770134538976,0.21773,2298.3,2297.8,2.17666924]
[1770134539367,0.21773,2298.3,2297.9,2.11640035]
[1770134539569,0.21773,2298.3,2297.8,2.17666924]
[1770134539769,0.21768,2298.9,2298.2,2.11640035]
[1770134540076,0.21768,2298.8,2298.1,2.17666924]
[1770134540266,2.13473412,2298.9,2297.8,4.11569865]
[1770134540472,2.13473412,2298.9,2297.8,1.73278905]
[1770134540473,0.21773,2298.3,2297.8,1.73278905]
[1770134541276,0.21773,2298.3,2297.8,4.05577129]
[1770134541575,0.21773,2298.3,2297.9,2.32298224]
[1770134542277,0.21774,2298.2,2297.8,1.73278905]
[1770134542468,0.21769,2298.8,2298.1,2.32298224]
[1770134542673,0.21771,2298.6,2298.1,2.32298224]
[1770134543376,0.21772,2298.4,2297.8,4.05577129]
[1770134543576,0.21772,2298.4,2297.9,2.32298224]
[1770134543776,0.21772,2298.4,2297.9,4.43938259]
[1770134543977,0.21772,2298.4,2298.0,2.11640035]
[1770134544178,0.00358873,2298.9,2298.0,2.32298224]
[1770134544975,12.41058873,2298.9,2298.0,2.32298224]
[1770134545270,0.21772,2298.4,2298.0,2.32298224]
[1770134545772,0.21772,2298.4,2298.1,4.43938259]
[1770134545975,12.62826873,2298.9,2298.3,2.11640035]
[1770134546181,12.62826873,2298.9,2298.3,2.32298224]
[1770134546381,3.51127057,2298.9,2298.5,4.43938259]
[1770134546679,3.51127057,2298.9,2298.6,4.43938259]
[1770134546881,7.973,2299.4,2298.8,4.43938259]
[1770134547077,0.21763,2299.4,2298.8,4.43938259]
[1770134547375,0.22076829,2299.4,2299.2,2.11640035]
[1770134547578,4.354,2299.8,2299.1,4.43938259]
[1770134547780,1.23010161,2299.8,2299.2,1.72742924]
[1770134548078,0.2176,2299.7,2299.2,4.05041148]
[1770134548275,0.07570393,2300.5,2299.8,1.72742924]
[1770134548481,0.2175,2300.8,2299.8,4.05041148]
[1770134548677,0.22204946,2300.8,2299.8,4.05470066]
[1770134548878,0.21753,2300.5,2299.8,1.73171842]
[1770134549078,0.21753,2300.4,2299.8,1.73171842]
[1770134549275,0.21756,2300.2,2299.8,1.73171842]
[1770134549482,0.2176,2299.7,2298.2,2.32298224]
[1770134549781,0.21761,2299.6,2298.4,2.32298224]
[1770134549981,0.21761,2299.6,2298.8,2.17315506]
[1770134550180,0.21761,2299.6,2299.2,2.32298224]
[1770134550376,4.97671901,2300.3,2299.2,2.32675774]
[1770134550676,0.21757,2300.1,2299.4,2.17315506]
[1770134551877,0.21763,2299.4,2299.2,0.0037755]
[1770134552079,0.21763,2299.4,2299.0,0.97173828]
[1770134552278,2.35071901,2299.2,2298.2,2.32298224]
[1770134552477,0.21773,2298.3,2298.0,2.17569076]
[1770134552782,0.21775,2298.2,2297.0,2.32298224]
[1770134552985,0.22135453,2298.2,2297.7,2.17610815]
[1770134553186,0.22135453,2298.2,2297.8,2.32298224]
[1770134553381,0.00360453,2298.2,2297.8,2.32298224]
[1770134553583,2.553,2298.6,2297.8,2.32298224]
[1770134554387,3.27361306,2298.6,2297.8,2.32298224]
[1770134554686,3.27825572,2298.6,2298.0,2.17610815]
[1770134554884,2.35071901,2298.5,2298.0,2.17610815]
[1770134555187,0.21775,2298.2,2297.6,4.05984039]
[1770134555590,0.21775,2298.1,2297.6,4.05984039]
[1770134555884,2.35071901,2297.9,2297.6,1.73685815]
[1770134556088,0.21779,2297.8,2297.0,0.00463556]
[1770134556284,0.21779,2297.7,2297.0,0.00463556]
[1770134556589,0.21779,2297.7,2297.2,2.17660811]
[1770134557087,6.70371901,2298.2,2297.2,2.17660811]
[1770134557290,4.353,2298.2,2297.2,2.17660811]
[1770134557481,2.35071901,2298.1,2297.2,2.17660811]
[1770134557685,0.21781,2297.5,2297.2,1.72548811]
[1770134559590,0.21777,2298.0,2297.2,4.04847035]